[Event "The Kvibergspelen 2024"]
[Site "Kviberg Park Hotel & Conference, Krutvagen 2, Gothenburg, Sweden"]
[Date "2024.09.07"]
[Round "5.9"]
[White "Ostensson, Julia"]
[Black "Rajcevski, Dejan"]
[Result "1-0"]
[TimeControl "15 minutes + 5 seconds per move from move one (Round 1 - 4) / 90 minutes + 30 seconds per move from move one (Round 5 - 8)"]
[WhiteFideId "1747703"]
[BlackFideId "1759027"]
[WhiteElo "2016"]
[BlackElo "2131"]

1. e4 {[%clk 01:30:57]} {[%emt 00:00:03]} c5 {[%clk 01:30:55]} {[%emt
00:00:06]} 2. Nf3 {[%clk 01:31:23]} {[%emt 00:00:04]} Nc6 {[%clk 01:31:21]}
{[%emt 00:00:04]} 3. Bb5 {[%clk 01:31:49]} {[%emt 00:00:04]} a6 {[%clk
01:31:11]} {[%emt 00:00:39]} 4. Bxc6 {[%clk 01:31:56]} {[%emt 00:00:23]} dxc6
{[%clk 01:31:26]} {[%emt 00:00:16]} 5. d3 {[%clk 01:31:28]} {[%emt 00:00:58]}
Bg4 {[%clk 01:31:16]} {[%emt 00:00:40]} 6. h3 {[%clk 01:22:38]} {[%emt
00:09:19]} Bh5 {[%clk 01:31:39]} {[%emt 00:00:07]} 7. g4 {[%clk 01:18:53]}
{[%emt 00:04:16]} Bg6 {[%clk 01:32:03]} {[%emt 00:00:06]} 8. Bf4 {[%clk
01:14:38]} {[%emt 00:04:45]} e6 {[%clk 01:24:56]} {[%emt 00:07:37]} 9. Nbd2
{[%clk 01:11:39]} {[%emt 00:03:28]} f6 {[%clk 01:21:50]} {[%emt 00:03:37]} 10.
e5 {[%clk 01:06:16]} {[%emt 00:05:53]} Ne7 {[%clk 01:19:04]} {[%emt 00:03:16]}
11. Bg3 {[%clk 01:03:53]} {[%emt 00:02:52]} h5 {[%clk 01:12:09]} {[%emt
00:07:24]} 12. Rg1 {[%clk 01:01:53]} {[%emt 00:02:31]} hxg4 {[%clk 01:11:35]}
{[%emt 00:01:05]} 13. hxg4 {[%clk 00:58:20]} {[%emt 00:04:03]} Nd5 {[%clk
01:08:51]} {[%emt 00:03:13]} 14. a3 {[%clk 00:52:24]} {[%emt 00:06:27]} Be7
{[%clk 01:04:49]} {[%emt 00:04:31]} 15. Qe2 {[%clk 00:41:27]} {[%emt 00:11:28]}
Qd7 {[%clk 01:03:46]} {[%emt 00:01:33]} 16. O-O-O {[%clk 00:41:32]} {[%emt
00:00:25]} O-O-O {[%clk 00:59:14]} {[%emt 00:05:02]} 17. Rge1 {[%clk 00:34:02]}
{[%emt 00:07:59]} f5 {[%clk 00:57:04]} {[%emt 00:02:41]} 18. gxf5 {[%clk
00:34:14]} {[%emt 00:00:19]} Bxf5 {[%clk 00:57:20]} {[%emt 00:00:13]} 19. Nc4
{[%clk 00:10:29]} {[%emt 00:24:15]} Rdf8 {[%clk 00:52:13]} {[%emt 00:05:36]} 20.
Nfd2 {[%clk 00:10:06]} {[%emt 00:00:54]} g5 {[%clk 00:43:33]} {[%emt 00:09:09]}
21. Ne4 {[%clk 00:09:57]} {[%emt 00:00:40]} Kb8 {[%clk 00:40:14]} {[%emt
00:03:49]} 22. Ncd6 {[%clk 00:07:40]} {[%emt 00:02:47]} Bxd6 {[%clk 00:39:18]}
{[%emt 00:01:26]} 23. Nxd6 {[%clk 00:07:27]} {[%emt 00:00:43]} Bh3 {[%clk
00:24:27]} {[%emt 00:15:20]} 24. Rh1 {[%clk 00:04:59]} {[%emt 00:02:58]} g4
{[%clk 00:21:14]} {[%emt 00:03:44]} 25. Rhg1 {[%clk 00:04:07]} {[%emt
00:01:21]} Rf3 {[%clk 00:20:21]} {[%emt 00:01:23]} 26. Qe4 {[%clk 00:02:33]}
{[%emt 00:02:04]} Ka7 {[%clk 00:09:04]} {[%emt 00:11:48]} 27. d4 {[%clk
00:02:53]} {[%emt 00:00:10]} cxd4 {[%clk 00:05:56]} {[%emt 00:03:37]} 28. Qxd4+
{[%clk 00:03:18]} {[%emt 00:00:06]} Kb8 {[%clk 00:05:58]} {[%emt 00:00:27]} 29.
c4 {[%clk 00:02:49]} {[%emt 00:00:59]} Ne7 {[%clk 00:05:19]} {[%emt 00:01:10]}
30. Nb5 {[%clk 00:00:36]} {[%emt 00:02:42]} Qxd4 {[%clk 00:03:11]} {[%emt
00:02:38]} 31. Nxd4 {[%clk 00:01:02]} {[%emt 00:00:04]} Rf7 {[%clk 00:02:14]}
{[%emt 00:01:27]} 32. Nxe6 {[%clk 00:01:29]} {[%emt 00:00:03]} Nf5 {[%clk
00:01:55]} {[%emt 00:00:49]} 33. Ng5 {[%clk 00:00:35]} {[%emt 00:01:24]} Re7
{[%clk 00:01:10]} {[%emt 00:01:15]} 34. Bf4 {[%clk 00:01:01]} {[%emt 00:00:05]}
Kc8 {[%clk 00:00:37]} {[%emt 00:01:03]} 35. e6 {[%clk 00:00:46]} {[%emt
00:00:44]} Rhe8 {[%clk 00:00:34]} {[%emt 00:00:34]} 36. Rge1 {[%clk 00:00:37]}
{[%emt 00:00:40]} Bg2 {[%clk 00:00:33]} {[%emt 00:00:30]} 37. Re5 {[%clk
00:01:04]} {[%emt 00:00:03]} Ng7 {[%clk 00:00:37]} {[%emt 00:00:26]} 38. Nf7
{[%clk 00:01:01]} {[%emt 00:00:33]} Rf8 {[%clk 00:00:32]} {[%emt 00:00:35]} 39.
Nd6+ {[%clk 00:00:44]} {[%emt 00:00:46]} Kb8 {[%clk 00:00:33]} {[%emt
00:00:30]} 40. Nf5 {[%clk 00:01:00]} {[%emt 00:00:14]} 1-0

[Event "The Kvibergspelen 2024"]
[Site "Kviberg Park Hotel & Conference, Krutvagen 2, Gothenburg, Sweden"]
[Date "2024.09.07"]
[Round "5.10"]
[White "Johansson, William"]
[Black "Ask, Josef"]
[Result "1-0"]
[TimeControl "15 minutes + 5 seconds per move from move one (Round 1 - 4) / 90 minutes + 30 seconds per move from move one (Round 5 - 8)"]
[BlackTitle "FM"]
[WhiteFideId "1744070"]
[BlackFideId "1704583"]
[WhiteElo "1899"]
[BlackElo "2106"]

1. b3 {[%clk 01:28:16]} {[%emt 00:02:44]} c5 {[%clk 01:30:08]} {[%emt
00:00:54]} 2. c4 {[%clk 01:28:17]} {[%emt 00:00:29]} Nc6 {[%clk 01:30:25]}
{[%emt 00:00:12]} 3. Bb2 {[%clk 01:28:38]} {[%emt 00:00:10]} e5 {[%clk
01:29:58]} {[%emt 00:00:56]} 4. Nc3 {[%clk 01:28:38]} {[%emt 00:00:29]} f5
{[%clk 01:28:29]} {[%emt 00:01:59]} 5. g3 {[%clk 01:27:57]} {[%emt 00:01:12]}
d6 {[%clk 01:27:33]} {[%emt 00:01:26]} 6. Bg2 {[%clk 01:28:16]} {[%emt
00:00:11]} g6 {[%clk 01:26:30]} {[%emt 00:01:32]} 7. e3 {[%clk 01:27:41]}
{[%emt 00:01:06]} Bg7 {[%clk 01:26:26]} {[%emt 00:00:34]} 8. Nge2 {[%clk
01:26:44]} {[%emt 00:01:27]} Nge7 {[%clk 01:25:06]} {[%emt 00:01:50]} 9. O-O
{[%clk 01:27:04]} {[%emt 00:00:09]} f4 {[%clk 01:20:55]} {[%emt 00:04:41]} 10.
exf4 {[%clk 01:25:02]} {[%emt 00:02:33]} O-O {[%clk 01:17:16]} {[%emt
00:04:10]} 11. Nd5 {[%clk 01:21:38]} {[%emt 00:03:53]} Nf5 {[%clk 01:15:16]}
{[%emt 00:02:29]} 12. fxe5 {[%clk 01:12:46]} {[%emt 00:09:22]} Nxe5 {[%clk
01:14:00]} {[%emt 00:01:46]} 13. Rb1 {[%clk 01:04:29]} {[%emt 00:08:48]} Nd4
{[%clk 01:10:39]} {[%emt 00:03:52]} 14. Bxd4 {[%clk 00:58:18]} {[%emt
00:06:40]} cxd4 {[%clk 01:10:54]} {[%emt 00:00:15]} 15. Nxd4 {[%clk 00:57:23]}
{[%emt 00:01:25]} Bg4 {[%clk 00:58:02]} {[%emt 00:13:21]} 16. f3 {[%clk
00:56:33]} {[%emt 00:01:21]} Nd3 {[%clk 00:55:27]} {[%emt 00:03:05]} 17. Nc2
{[%clk 00:54:01]} {[%emt 00:03:02]} Bf5 {[%clk 00:51:11]} {[%emt 00:04:46]} 18.
g4 {[%clk 00:52:51]} {[%emt 00:01:40]} Be6 {[%clk 00:42:10]} {[%emt 00:09:30]}
19. Qe2 {[%clk 00:51:47]} {[%emt 00:01:34]} Bxd5 {[%clk 00:41:54]} {[%emt
00:00:46]} 20. Qxd3 {[%clk 00:52:08]} {[%emt 00:00:11]} Bc6 {[%clk 00:40:56]}
{[%emt 00:01:28]} 21. Qe3 {[%clk 00:45:31]} {[%emt 00:07:06]} Qh4 {[%clk
00:33:11]} {[%emt 00:08:14]} 22. Qe6+ {[%clk 00:41:26]} {[%emt 00:04:36]} Rf7
{[%clk 00:30:58]} {[%emt 00:02:42]} 23. Qxd6 {[%clk 00:34:47]} {[%emt
00:07:09]} Qg5 {[%clk 00:26:29]} {[%emt 00:05:00]} 24. d4 {[%clk 00:33:03]}
{[%emt 00:02:14]} Rd8 {[%clk 00:23:45]} {[%emt 00:03:13]} 25. Qg3 {[%clk
00:32:52]} {[%emt 00:00:41]} Bxd4+ {[%clk 00:21:46]} {[%emt 00:02:30]} 26. Nxd4
{[%clk 00:33:20]} {[%emt 00:00:02]} Rxd4 {[%clk 00:22:12]} {[%emt 00:00:04]} 27.
h4 {[%clk 00:31:41]} {[%emt 00:02:09]} Qe3+ {[%clk 00:21:27]} {[%emt 00:01:15]}
28. Qf2 {[%clk 00:29:57]} {[%emt 00:02:14]} Qf4 {[%clk 00:21:35]} {[%emt
00:00:22]} 29. Rbd1 {[%clk 00:29:50]} {[%emt 00:00:36]} Rfd7 {[%clk 00:20:01]}
{[%emt 00:02:05]} 30. Rxd4 {[%clk 00:28:54]} {[%emt 00:01:26]} Rxd4 {[%clk
00:20:26]} {[%emt 00:00:05]} 31. Re1 {[%clk 00:20:42]} {[%emt 00:08:42]} Rd2
{[%clk 00:17:44]} {[%emt 00:03:12]} 32. Qe3 {[%clk 00:19:19]} {[%emt 00:01:53]}
Qxe3+ {[%clk 00:15:02]} {[%emt 00:03:12]} 33. Rxe3 {[%clk 00:19:47]} {[%emt
00:00:02]} a5 {[%clk 00:13:12]} {[%emt 00:02:20]} 34. a4 {[%clk 00:18:46]}
{[%emt 00:01:32]} Rb2 {[%clk 00:13:24]} {[%emt 00:00:17]} 35. Kh2 {[%clk
00:16:49]} {[%emt 00:02:26]} Kf7 {[%clk 00:13:25]} {[%emt 00:00:29]} 36. Kg3
{[%clk 00:17:11]} {[%emt 00:00:09]} h6 {[%clk 00:13:10]} {[%emt 00:00:45]} 37.
g5 {[%clk 00:16:38]} {[%emt 00:01:03]} hxg5 {[%clk 00:12:34]} {[%emt 00:01:06]}
38. hxg5 {[%clk 00:17:06]} {[%emt 00:00:01]} Rb1 {[%clk 00:11:58]} {[%emt
00:01:05]} 39. Bh3 {[%clk 00:15:40]} {[%emt 00:01:57]} Rb2 {[%clk 00:11:17]}
{[%emt 00:01:12]} 40. Kf4 {[%clk 00:14:52]} {[%emt 00:01:17]} Ra2 {[%clk
00:10:49]} {[%emt 00:00:59]} 41. Be6+ {[%clk 00:15:09]} {[%emt 00:00:13]} Kg7
{[%clk 00:10:58]} {[%emt 00:00:22]} 42. Bd5 {[%clk 00:15:21]} {[%emt 00:00:17]}
Rb2 {[%clk 00:10:26]} {[%emt 00:01:02]} 43. Bxc6 {[%clk 00:15:30]} {[%emt
00:00:21]} bxc6 {[%clk 00:10:53]} {[%emt 00:00:04]} 44. Ke5 {[%clk 00:15:47]}
{[%emt 00:00:12]} Rd2 {[%clk 00:10:38]} {[%emt 00:00:45]} 45. Ke6 {[%clk
00:14:39]} {[%emt 00:01:37]} Rd8 {[%clk 00:07:10]} {[%emt 00:03:59]} 46. Re5
{[%clk 00:09:30]} {[%emt 00:05:38]} Rb8 {[%clk 00:07:37]} {[%emt 00:00:04]} 47.
Rxa5 {[%clk 00:09:49]} {[%emt 00:00:11]} Rxb3 {[%clk 00:07:55]} {[%emt
00:00:12]} 48. Ra7+ {[%clk 00:09:30]} {[%emt 00:00:49]} Kf8 {[%clk 00:07:48]}
{[%emt 00:00:37]} 49. f4 {[%clk 00:06:14]} {[%emt 00:03:45]} Rb4 {[%clk
00:07:43]} {[%emt 00:00:36]} 50. Kf6 {[%clk 00:06:33]} {[%emt 00:00:11]} Ke8
{[%clk 00:07:28]} {[%emt 00:00:45]} 51. Kxg6 {[%clk 00:06:55]} {[%emt
00:00:08]} Rxc4 {[%clk 00:07:37]} {[%emt 00:00:22]} 52. f5 {[%clk 00:07:19]}
{[%emt 00:00:05]} Rf4 {[%clk 00:07:20]} {[%emt 00:00:47]} 53. f6 {[%clk
00:07:42]} {[%emt 00:00:07]} c5 {[%clk 00:07:13]} {[%emt 00:00:38]} 54. f7+
{[%clk 00:08:05]} {[%emt 00:00:07]} Kd8 {[%clk 00:07:38]} {[%emt 00:00:05]} 55.
Ra8+ {[%clk 00:08:23]} {[%emt 00:00:12]} 1-0

[Event "The Kvibergspelen 2024"]
[Site "Kviberg Park Hotel & Conference, Krutvagen 2, Gothenburg, Sweden"]
[Date "2024.09.07"]
[Round "5.11"]
[White "Eriksson, Kristian"]
[Black "Thyberg, Andre"]
[Result "1-0"]
[TimeControl "15 minutes + 5 seconds per move from move one (Round 1 - 4) / 90 minutes + 30 seconds per move from move one (Round 5 - 8)"]
[WhiteFideId "1705172"]
[BlackFideId "1764764"]
[WhiteElo "2051"]
[BlackElo "1994"]

1. e4 {[%clk 01:30:56]} {[%emt 00:00:03]} e5 {[%clk 01:27:26]} {[%emt
00:03:35]} 2. Nf3 {[%clk 01:31:12]} {[%emt 00:00:12]} Nc6 {[%clk 01:27:46]}
{[%emt 00:00:11]} 3. Bb5 {[%clk 01:31:22]} {[%emt 00:00:20]} Bc5 {[%clk
01:27:56]} {[%emt 00:00:21]} 4. O-O {[%clk 01:31:13]} {[%emt 00:00:39]} Nd4
{[%clk 01:28:08]} {[%emt 00:00:19]} 5. Ba4 {[%clk 01:31:11]} {[%emt 00:00:31]}
Qf6 {[%clk 01:24:02]} {[%emt 00:04:36]} 6. Nxd4 {[%clk 01:29:54]} {[%emt
00:01:48]} Bxd4 {[%clk 01:24:30]} {[%emt 00:00:02]} 7. c3 {[%clk 01:29:42]}
{[%emt 00:00:41]} Bb6 {[%clk 01:24:44]} {[%emt 00:00:16]} 8. Na3 {[%clk
01:24:14]} {[%emt 00:05:59]} c6 {[%clk 01:20:46]} {[%emt 00:04:28]} 9. Nc4
{[%clk 01:20:29]} {[%emt 00:04:15]} Bc7 {[%clk 01:20:43]} {[%emt 00:00:33]} 10.
Bb3 {[%clk 01:20:42]} {[%emt 00:00:16]} Ne7 {[%clk 01:19:35]} {[%emt 00:01:39]}
11. d4 {[%clk 01:17:18]} {[%emt 00:03:54]} Ng6 {[%clk 01:14:54]} {[%emt
00:05:11]} 12. dxe5 {[%clk 01:13:50]} {[%emt 00:03:59]} Nxe5 {[%clk 01:15:07]}
{[%emt 00:00:16]} 13. Nxe5 {[%clk 01:10:41]} {[%emt 00:03:39]} Qxe5 {[%clk
01:15:24]} {[%emt 00:00:13]} 14. f4 {[%clk 01:10:50]} {[%emt 00:00:20]} Qc5+
{[%clk 01:07:49]} {[%emt 00:08:06]} 15. Kh1 {[%clk 01:10:50]} {[%emt 00:00:29]}
O-O {[%clk 01:08:12]} {[%emt 00:00:08]} 16. f5 {[%clk 01:00:21]} {[%emt
00:10:58]} Be5 {[%clk 01:06:37]} {[%emt 00:02:06]} 17. Qf3 {[%clk 00:51:23]}
{[%emt 00:09:27]} a5 {[%clk 01:02:35]} {[%emt 00:04:33]} 18. a4 {[%clk
00:47:59]} {[%emt 00:03:54]} b5 {[%clk 01:02:25]} {[%emt 00:00:40]} 19. Be3
{[%clk 00:47:24]} {[%emt 00:01:04]} Qd6 {[%clk 00:59:04]} {[%emt 00:03:50]} 20.
Rad1 {[%clk 00:42:07]} {[%emt 00:05:48]} Qb8 {[%clk 00:57:41]} {[%emt
00:01:53]} 21. Qh5 {[%clk 00:37:05]} {[%emt 00:05:30]} bxa4 {[%clk 00:51:37]}
{[%emt 00:06:37]} 22. Bc4 {[%clk 00:36:55]} {[%emt 00:00:39]} Ba6 {[%clk
00:41:08]} {[%emt 00:11:00]} 23. Bxa6 {[%clk 00:33:59]} {[%emt 00:03:26]} Rxa6
{[%clk 00:41:36]} {[%emt 00:00:02]} 24. f6 {[%clk 00:32:44]} {[%emt 00:01:45]}
Bxf6 {[%clk 00:28:34]} {[%emt 00:13:32]} 25. Rxf6 {[%clk 00:32:18]} {[%emt
00:00:55]} gxf6 {[%clk 00:28:55]} {[%emt 00:00:10]} 26. Bh6 {[%clk 00:29:01]}
{[%emt 00:03:46]} Kh8 {[%clk 00:29:15]} {[%emt 00:00:11]} 27. Bxf8 {[%clk
00:26:15]} {[%emt 00:03:15]} Qxf8 {[%clk 00:29:38]} {[%emt 00:00:07]} 28. Rxd7
{[%clk 00:26:06]} {[%emt 00:00:39]} Kg7 {[%clk 00:26:54]} {[%emt 00:03:14]} 29.
Qg4+ {[%clk 00:18:37]} {[%emt 00:07:59]} Kh8 {[%clk 00:26:33]} {[%emt
00:00:51]} 30. Qf5 {[%clk 00:18:02]} {[%emt 00:01:05]} Kg7 {[%clk 00:26:02]}
{[%emt 00:01:02]} 31. e5 {[%clk 00:16:00]} {[%emt 00:02:32]} Kg8 {[%clk
00:21:36]} {[%emt 00:04:55]} 32. Qxf6 {[%clk 00:13:24]} {[%emt 00:03:06]} Ra8
{[%clk 00:21:38]} {[%emt 00:00:28]} 33. e6 {[%clk 00:05:41]} {[%emt 00:08:13]}
fxe6 {[%clk 00:21:41]} {[%emt 00:00:27]} 34. Qxe6+ {[%clk 00:06:02]} {[%emt
00:00:09]} Kh8 {[%clk 00:22:04]} {[%emt 00:00:07]} 35. Rf7 {[%clk 00:06:00]}
{[%emt 00:00:32]} 1-0

[Event "The Kvibergspelen 2024"]
[Site "Kviberg Park Hotel & Conference, Krutvagen 2, Gothenburg, Sweden"]
[Date "2024.09.07"]
[Round "5.12"]
[White "Ostlund, Joar"]
[Black "Dingertz, Gustav"]
[Result "1-0"]
[TimeControl "15 minutes + 5 seconds per move from move one (Round 1 - 4) / 90 minutes + 30 seconds per move from move one (Round 5 - 8)"]
[WhiteTitle "FM"]
[WhiteFideId "1735020"]
[BlackFideId "1767917"]
[WhiteElo "2335"]
[BlackElo "1938"]

1. d4 {[%clk 01:30:56]} {[%emt 00:00:02]} Nf6 {[%clk 01:30:51]} {[%emt
00:00:09]} 2. c4 {[%clk 01:31:13]} {[%emt 00:00:13]} e6 {[%clk 01:31:14]}
{[%emt 00:00:07]} 3. Nf3 {[%clk 01:30:59]} {[%emt 00:00:45]} d5 {[%clk
01:31:30]} {[%emt 00:00:13]} 4. Nc3 {[%clk 01:30:52]} {[%emt 00:00:38]} dxc4
{[%clk 01:31:30]} {[%emt 00:00:30]} 5. e4 {[%clk 01:30:17]} {[%emt 00:01:04]}
Bb4 {[%clk 01:31:48]} {[%emt 00:00:12]} 6. Bg5 {[%clk 01:18:34]} {[%emt
00:12:14]} c5 {[%clk 01:31:33]} {[%emt 00:00:45]} 7. Bxc4 {[%clk 01:15:52]}
{[%emt 00:03:12]} cxd4 {[%clk 01:30:33]} {[%emt 00:01:30]} 8. Nxd4 {[%clk
01:13:16]} {[%emt 00:03:06]} Bxc3+ {[%clk 01:30:53]} {[%emt 00:00:09]} 9. bxc3
{[%clk 01:13:39]} {[%emt 00:00:09]} Qa5 {[%clk 01:31:18]} {[%emt 00:00:04]} 10.
Bxf6 {[%clk 01:11:26]} {[%emt 00:02:43]} Qxc3+ {[%clk 01:31:34]} {[%emt
00:00:14]} 11. Kf1 {[%clk 01:10:31]} {[%emt 00:01:25]} gxf6 {[%clk 01:31:55]}
{[%emt 00:00:08]} 12. Rc1 {[%clk 01:06:19]} {[%emt 00:04:42]} Qa5 {[%clk
01:32:16]} {[%emt 00:00:09]} 13. h4 {[%clk 00:55:21]} {[%emt 00:11:28]} Bd7
{[%clk 01:17:35]} {[%emt 00:15:12]} 14. Rh3 {[%clk 00:48:34]} {[%emt 00:07:17]}
Nc6 {[%clk 01:13:04]} {[%emt 00:05:00]} 15. Nb5 {[%clk 00:36:34]} {[%emt
00:12:30]} Ne5 {[%clk 00:50:07]} {[%emt 00:23:28]} 16. Nd6+ {[%clk 00:35:36]}
{[%emt 00:01:27]} Ke7 {[%clk 00:50:28]} {[%emt 00:00:09]} 17. Nxb7 {[%clk
00:34:27]} {[%emt 00:01:39]} Qc7 {[%clk 00:50:38]} {[%emt 00:00:20]} 18. Qb3
{[%clk 00:33:55]} {[%emt 00:01:02]} f5 {[%clk 00:44:41]} {[%emt 00:06:28]} 19.
Qa3+ {[%clk 00:26:27]} {[%emt 00:07:58]} Kf6 {[%clk 00:44:44]} {[%emt
00:00:26]} 20. Nd6 {[%clk 00:25:39]} {[%emt 00:01:18]} Qb6 {[%clk 00:29:56]}
{[%emt 00:15:18]} 21. exf5 {[%clk 00:21:03]} {[%emt 00:05:08]} exf5 {[%clk
00:26:43]} {[%emt 00:03:41]} 22. Re3 {[%clk 00:15:23]} {[%emt 00:06:10]} Qd4
{[%clk 00:23:19]} {[%emt 00:03:54]} 23. Nxf7 {[%clk 00:13:44]} {[%emt
00:02:10]} Rhe8 {[%clk 00:19:38]} {[%emt 00:04:11]} 24. Nxe5 {[%clk 00:13:13]}
{[%emt 00:01:01]} Rxe5 {[%clk 00:19:59]} {[%emt 00:00:09]} 25. Rxe5 {[%clk
00:13:28]} {[%emt 00:00:14]} Qxe5 {[%clk 00:20:20]} {[%emt 00:00:09]} 26. Re1
{[%clk 00:13:45]} {[%emt 00:00:13]} Qd4 {[%clk 00:18:50]} {[%emt 00:02:00]} 27.
Qe7+ {[%clk 00:14:02]} {[%emt 00:00:13]} 1-0

[Event "The Kvibergspelen 2024"]
[Site "Kviberg Park Hotel & Conference, Krutvagen 2, Gothenburg, Sweden"]
[Date "2024.09.07"]
[Round "5.13"]
[White "Wallgren, Ulf"]
[Black "Frank, Anton"]
[Result "0-1"]
[TimeControl "15 minutes + 5 seconds per move from move one (Round 1 - 4) / 90 minutes + 30 seconds per move from move one (Round 5 - 8)"]
[WhiteFideId "1706527"]
[BlackFideId "1752383"]
[WhiteElo "1937"]
[BlackElo "2142"]

1. e4 {[%clk 01:30:55]} {[%emt 00:00:02]} e5 {[%clk 01:30:30]} {[%emt
00:00:32]} 2. d4 {[%clk 01:31:07]} {[%emt 00:00:18]} exd4 {[%clk 01:30:53]}
{[%emt 00:00:07]} 3. Qxd4 {[%clk 01:31:23]} {[%emt 00:00:14]} Nc6 {[%clk
01:31:17]} {[%emt 00:00:06]} 4. Qe3 {[%clk 01:31:38]} {[%emt 00:00:14]} Nf6
{[%clk 01:31:41]} {[%emt 00:00:07]} 5. Nc3 {[%clk 01:31:55]} {[%emt 00:00:13]}
Bb4 {[%clk 01:32:05]} {[%emt 00:00:06]} 6. Bd2 {[%clk 01:32:11]} {[%emt
00:00:15]} O-O {[%clk 01:32:26]} {[%emt 00:00:08]} 7. O-O-O {[%clk 01:32:31]}
{[%emt 00:00:10]} Re8 {[%clk 01:32:42]} {[%emt 00:00:15]} 8. Qg3 {[%clk
01:32:37]} {[%emt 00:00:23]} Nxe4 {[%clk 01:33:01]} {[%emt 00:00:10]} 9. Nxe4
{[%clk 01:32:47]} {[%emt 00:00:21]} Rxe4 {[%clk 01:33:22]} {[%emt 00:00:09]} 10.
c3 {[%clk 01:32:46]} {[%emt 00:00:31]} Be7 {[%clk 01:33:19]} {[%emt 00:00:34]}
11. f4 {[%clk 01:27:21]} {[%emt 00:05:55]} d5 {[%clk 01:33:31]} {[%emt
00:00:18]} 12. Bd3 {[%clk 01:23:57]} {[%emt 00:03:53]} Bf5 {[%clk 01:33:52]}
{[%emt 00:00:10]} 13. Nf3 {[%clk 01:13:20]} {[%emt 00:11:07]} Qc8 {[%clk
01:21:21]} {[%emt 00:13:00]} 14. Nh4 {[%clk 00:36:10]} {[%emt 00:37:41]} Bxh4
{[%clk 01:14:38]} {[%emt 00:07:12]} 15. Qxh4 {[%clk 00:36:37]} {[%emt
00:00:03]} Ra4 {[%clk 01:14:34]} {[%emt 00:00:33]} 16. Bb1 {[%clk 00:34:54]}
{[%emt 00:02:14]} Bxb1 {[%clk 01:10:56]} {[%emt 00:04:09]} 17. Kxb1 {[%clk
00:35:21]} {[%emt 00:00:03]} Qf5+ {[%clk 01:11:02]} {[%emt 00:00:23]} 18. Ka1
{[%clk 00:35:28]} {[%emt 00:00:22]} Na5 {[%clk 01:11:02]} {[%emt 00:00:31]} 19.
a3 {[%clk 00:35:19]} {[%emt 00:00:40]} Qc2 {[%clk 01:10:14]} {[%emt 00:01:17]}
20. Ka2 {[%clk 00:34:32]} {[%emt 00:01:17]} Rxa3+ {[%clk 01:10:32]} {[%emt
00:00:13]} 21. Kxa3 {[%clk 00:34:54]} {[%emt 00:00:08]} Qb3# {[%clk 01:10:55]}
{[%emt 00:00:05]} 0-1